bitfinex/quotes_ETHUSD_20220118
["timestamp","ask_amount","ask_price","bid_price","bid_amount"]
[1642483588063,0.00227369,3176.8,3176.7,10.77665861]
[1642483588668,0.00227369,3176.8,3176.7,10.79425325]
[1642483595762,0.00227369,3176.8,3176.7,10.49425325]
[1642483596766,0.00227369,3176.8,3176.7,4.56459464]
[1642483596965,0.00227369,3176.8,3176.7,3.56459464]
[1642483597614,0.00227369,3176.8,3176.7,3.11759464]
[1642483598217,0.00227369,3176.8,3176.7,4.11759464]
[1642483598420,0.00227369,3176.8,3176.7,3.11759464]
[1642483598616,0.00227369,3176.8,3176.7,4.11759464]
[1642483598817,0.00227369,3176.8,3176.7,3.1]
[1642483599017,0.00227369,3176.8,3176.7,4.1]
[1642483599219,0.00227369,3176.8,3176.7,3.1]
[1642483599416,0.00227369,3176.8,3176.7,4.1]
[1642483599819,2.69173475,3176.8,3176.7,4.1]
[1642483601465,0.00227369,3176.8,3176.7,4.1]
[1642483606410,2.68946106,3176.9,3176.7,4.1]
[1642483606612,2.68946106,3176.9,3176.8,1.0]
[1642483607014,2.69230318,3176.9,3176.8,1.0]
[1642483608762,2.69230318,3176.9,3176.8,1.31791997]
[1642483610868,0.00284212,3176.9,3176.8,1.31791997]
[1642483612067,0.00284212,3176.9,3176.8,1.44381997]
[1642483613115,0.00284212,3176.9,3176.8,1.31791997]
[1642483613721,0.00284212,3176.9,3176.8,1.3]
[1642483614715,0.00284212,3176.9,3176.8,1.0]
[1642483616762,2.74245459,3176.9,3176.8,1.0]
[1642483616964,0.00284212,3176.9,3176.8,1.0]
[1642483617368,2.69230318,3176.9,3176.8,1.0]
[1642483619573,0.00284212,3176.9,3176.8,1.0]
[1642483619811,2.71184781,3176.9,3176.8,1.0]
[1642483620216,2.71184781,3176.9,3176.7,3.11791997]
[1642483620612,0.00227369,3176.8,3176.7,3.11791997]
[1642483621612,0.00227369,3176.8,3176.7,4.11791997]
[1642483621813,0.00227369,3176.8,3176.7,3.11791997]
[1642483622014,0.00227369,3176.8,3176.7,4.11791997]
[1642483623773,0.00227369,3176.8,3176.7,4.1]
[1642483624576,2.69173475,3176.8,3176.7,4.1]
[1642483624977,2.6833481,3176.8,3176.7,4.1]
[1642483625975,2.6833481,3176.8,3176.7,3.1]
[1642483626174,1.59805126,3177.0,3176.7,4.1]
[1642483626376,1.59805126,3177.0,3176.7,3.1]
[1642483626575,1.59805126,3177.0,3176.8,1.0]
[1642483627612,1.59805126,3177.1,3176.8,1.0]
[1642483628812,1.59805126,3177.1,3176.9,0.01791154]
[1642483629013,0.0022737,3177.2,3176.9,0.01791154]
[1642483629014,1.60032496,3177.2,3176.9,0.01791154]
[1642483629412,0.00170527,3177.1,3176.9,0.01791154]
[1642483629812,0.00113685,3177.0,3176.9,0.01791154]
[1642483633566,0.00113685,3177.0,3176.9,0.14381154]
[1642483633766,0.00113685,3177.0,3176.9,0.1259]
[1642483634565,3.6656811,3177.4,3176.9,0.1259]
[1642483635011,0.00170527,3177.3,3176.9,0.1259]
[1642483635413,0.00113685,3177.2,3176.9,0.1259]
[1642483635613,0.00113685,3177.2,3176.8,1.0]
[1642483635816,0.00113685,3177.2,3176.8,1.447]
[1642483636713,0.00113685,3177.2,3176.9,0.1259]
[1642483638665,0.00113685,3177.2,3176.9,0.14380311]
[1642483639467,1.0,3177.0,3176.9,0.14380311]
[1642483640670,1.0,3177.0,3176.9,0.59080311]
[1642483640870,1.0,3177.0,3176.9,3.51173028]
[1642483641073,1.0,3177.0,3176.9,4.81173028]
[1642483641570,1.0,3177.0,3176.9,1.89080311]
[1642483642071,0.99147307,3177.0,3176.9,0.89080311]
[1642483643127,0.99147307,3177.0,3176.9,3.77317405]
[1642483643328,0.99147307,3177.0,3176.9,4.77317405]
[1642483644328,0.99147307,3177.0,3176.9,1.89080311]
[1642483644529,0.99147307,3177.0,3176.9,0.89080311]
[1642483648370,3.68040872,3177.0,3176.9,0.76490311]
[1642483649269,0.99147307,3177.0,3176.9,0.76490311]
[1642483653022,0.99147307,3177.0,3176.9,0.46490311]
[1642483655068,3.68023895,3177.0,3176.9,0.46490311]
[1642483655669,3.68023895,3177.0,3176.9,0.76490311]
[1642483658822,3.68023895,3177.0,3176.9,0.747]
[1642483665423,0.99147307,3177.0,3176.9,0.747]
[1642483675128,3.68031601,3177.0,3176.9,0.447]
[1642483676968,3.68031601,3177.0,3176.9,3.41072866]
[1642483677168,3.68031601,3177.0,3176.9,4.41072866]
[1642483677772,0.99147307,3177.0,3176.9,4.41072866]
[1642483679273,0.99147307,3177.0,3176.9,4.53662866]
[1642483679676,0.99147307,3177.0,3176.9,4.59123573]
[1642483680516,0.99147307,3177.0,3176.9,13.14077422]
[1642483686569,0.99147307,3177.0,3176.9,13.08616715]
[1642483686969,0.99147307,3177.0,3176.9,10.11762866]
[1642483688122,0.99147307,3177.0,3176.9,9.99172866]
[1642483689323,3.68020355,3177.0,3176.9,9.99172866]
[1642483692370,0.99147307,3177.0,3176.9,9.99172866]
[1642483692870,0.99147307,3177.0,3176.9,7.328]
[1642483693070,3.68020783,3177.0,3176.9,7.328]
[1642483694673,3.68020783,3177.0,3176.9,7.028]
[1642483698131,0.99147307,3177.0,3176.9,7.028]
[1642483699172,3.68020618,3177.0,3176.9,7.028]
[1642483699974,0.99147307,3177.0,3176.9,7.028]
[1642483700373,0.99147307,3177.0,3176.9,7.328]
[1642483700575,3.68023253,3177.0,3176.9,7.328]
[1642483701186,3.68023253,3177.0,3176.9,31.32637155]
[1642483701380,1.2125,3177.7,3177.3,0.34794235]
[1642483701584,3.6351,3177.9,3177.6,1.46123989]
[1642483701780,3.6351,3177.9,3177.7,0.447]
[1642483702181,1.72385126,3178.0,3177.7,0.447]
[1642483702628,0.00511581,3177.9,3177.7,0.447]
[1642483703028,0.00454739,3177.8,3177.7,0.447]
[1642483704031,0.00454739,3177.8,3177.7,1.447]
[1642483706273,0.00454739,3177.8,3177.7,1.747]
[1642483706573,0.00454739,3177.8,3177.7,1.447]
[1642483706775,0.00454739,3177.8,3177.7,1.747]
[1642483707875,0.00454739,3177.8,3177.7,1.447]
[1642483708681,0.00454739,3177.8,3177.7,1.747]
[1642483709577,0.00454739,3177.8,3177.7,1.8728]
[1642483713022,0.00454739,3177.8,3177.7,4.9728]
[1642483717924,0.00454739,3177.8,3177.7,4.6728]
[1642483718526,0.00454739,3177.8,3177.7,4.547]
[1642483718826,0.00454739,3177.8,3177.7,4.847]
[1642483721195,0.00454739,3177.8,3177.7,7.847]
[1642483721394,0.00100282,3177.8,3177.7,11.02989533]
[1642483721603,6.47195126,3178.6,3177.8,5.7]
[1642483721799,6.47195126,3178.6,3178.0,5.581]
[1642483721996,0.00397896,3178.5,3178.1,0.447]
[1642483722196,0.00397896,3178.5,3178.2,0.1258]
[1642483722396,0.00341054,3178.4,3178.3,5.547]
[1642483722598,0.00341054,3178.4,3178.3,8.0333]
[1642483723000,0.00341054,3178.4,3178.3,26.4633]
[1642483723198,0.00341054,3178.4,3178.3,35.22719533]
[1642483723598,0.1258,3179.2,3178.4,5.49649689]
[1642483723798,1.59805126,3179.3,3178.6,1.1521835]
[1642483723999,0.00227369,3178.8,3178.7,0.5728]
[1642483724402,0.00227369,3178.8,3178.7,3.46668262]
[1642483724602,0.00227369,3178.8,3178.7,4.46668262]
[1642483725019,0.00227369,3178.8,3178.7,10.04768262]
[1642483725421,0.00227369,3178.8,3178.7,11.54493016]
[1642483725626,0.00227369,3178.8,3178.7,8.58939273]
[1642483727227,0.00227369,3178.8,3178.7,11.48675484]
[1642483727726,0.00227369,3178.8,3178.7,11.98625173]
[1642483727928,0.00227369,3178.8,3178.7,9.08888962]
[1642483729172,0.00227369,3178.8,3178.7,8.58939273]
[1642483729577,0.00227369,3178.8,3178.7,8.46359273]
[1642483731176,2.63996969,3179.5,3178.7,8.46359273]
[1642483731379,2.63996969,3179.5,3178.8,5.881]
[1642483731577,2.64394866,3179.5,3178.9,0.447]
[1642483731979,0.00397897,3179.5,3178.9,0.447]
[1642483734030,0.00397897,3179.5,3178.9,3.547]
[1642483734230,0.00397897,3179.5,3179.0,1.0]
[1642483734529,0.00397897,3179.5,3179.1,0.447]
[1642483735330,0.00397897,3179.5,3179.2,5.581]
[1642483735533,0.00397897,3179.5,3179.3,1.747]
[1642483737982,1.60203023,3179.5,3179.3,1.747]
[1642483740228,0.00397897,3179.5,3179.3,1.747]
[1642483742135,0.3128,3179.4,3179.3,1.747]
[1642483752781,0.3128,3179.4,3179.3,2.047]
[1642483755930,0.3128,3179.4,3179.3,2.1728]
[1642483758035,0.3128,3179.4,3179.3,2.047]
[1642483760890,2.99951071,3179.4,3179.3,2.047]
[1642483763631,2.99951071,3179.4,3179.3,5.797]
[1642483763833,2.99951071,3179.4,3179.3,11.5737]
[1642483764033,2.99951071,3179.4,3179.3,35.1727]
[1642483764230,2.99951071,3179.4,3179.3,35.2985]
[1642483764431,1.59805126,3179.8,3179.4,5.7]
[1642483764633,1.59805126,3179.8,3179.7,5.581]
[1642483764932,1.59805126,3179.8,3179.7,8.78246334]
[1642483765132,1.59805126,3179.8,3179.7,13.38909753]
[1642483765433,3.12173703,3180.3,3179.9,5.7]
[1642483765638,3.12173703,3180.3,3180.2,5.581]
[1642483765835,3.12173703,3180.3,3180.2,9.31317196]
[1642483766086,3.12173703,3180.3,3180.2,10.61317196]
[1642483766574,3.12173703,3180.3,3180.2,7.328]
[1642483767780,1.357,3181.2,3180.2,7.328]
[1642483767979,4.15759805,3181.2,3180.7,5.581]
[1642483768181,0.1257,3181.2,3180.8,0.447]
[1642483768583,0.1257,3181.2,3180.8,1.447]
[1642483771930,1.28154674,3181.3,3180.8,1.747]
[1642483772330,0.01364217,3181.2,3180.8,1.747]
[1642483772730,0.01307374,3181.1,3180.8,1.747]
[1642483773131,0.01250532,3181.0,3180.8,1.747]
[1642483773579,0.0119369,3180.9,3180.8,1.747]
[1642483773776,0.0119369,3180.9,3180.8,4.847]
[1642483777833,0.0119369,3180.9,3180.8,4.547]
[1642483790178,0.0119369,3180.9,3180.8,4.847]
[1642483791079,0.0119369,3180.9,3180.8,4.547]
[1642483791479,2.69746804,3180.9,3180.8,4.547]
[1642483794336,2.69746804,3180.9,3180.8,4.847]
[1642483795036,2.69746804,3180.9,3180.8,4.9727]
[1642483797484,0.0119369,3180.9,3180.8,4.9727]
[1642483799083,2.69739285,3180.9,3180.8,4.9727]
[1642483801331,2.69739285,3180.9,3180.8,3.6727]
[1642483801730,2.69739285,3180.9,3180.8,3.547]
[1642483801931,2.64739285,3180.9,3180.8,3.547]
[1642483802539,2.64739285,3180.9,3180.8,4.847]
[1642483803336,1.60775475,3181.4,3180.8,4.847]
[1642483803583,1.60775475,3181.4,3180.9,1.3]
[1642483803779,1.60775475,3181.4,3181.0,0.447]
[1642483804178,1.60775475,3181.5,3181.0,0.447]
[1642483804579,1.60775475,3181.5,3181.0,0.747]
[1642483804983,1.60639249,3181.5,3181.0,0.747]
[1642483805782,1.60639249,3181.5,3181.4,1.18304558]
[1642483805982,1.60639249,3181.5,3181.4,1.63004558]
[1642483806182,1.60639249,3181.5,3181.4,3.35574558]
[1642483806581,2.41163213,3181.8,3181.5,1.27955038]
[1642483806782,2.41163213,3181.8,3181.6,0.447]
[1642483807181,2.41163213,3181.8,3181.6,0.747]
[1642483807429,0.00454738,3181.7,3181.6,0.747]
[1642483809630,0.37031291,3181.7,3181.6,0.747]
[1642483809829,0.73607844,3181.7,3181.6,0.747]
[1642483814082,0.73607844,3181.7,3181.6,3.847]
[1642483814483,0.73607844,3181.7,3181.6,4.847]
[1642483817937,2.3435522,3181.7,3181.6,4.547]
[1642483818340,2.3435522,3181.7,3181.6,3.547]
[1642483818781,0.73607844,3181.7,3181.6,3.547]
[1642483819985,0.73607844,3181.7,3181.6,4.547]
[1642483820385,3.50067823,3181.7,3181.6,4.547]
[1642483820787,0.73607844,3181.7,3181.6,4.547]
[1642483822189,3.42132984,3181.7,3181.6,4.547]
[1642483826779,3.42132984,3181.7,3181.6,4.847]
[1642483829485,3.42132984,3181.7,3181.6,4.9727]
[1642483830431,3.42132984,3181.7,3181.6,4.847]
[1642483833988,3.37132984,3181.7,3181.6,4.847]
[1642483834384,3.05101693,3181.7,3181.6,4.847]
[1642483834684,3.37132984,3181.7,3181.6,4.847]
[1642483834883,3.32132984,3181.7,3181.6,4.847]
[1642483835290,3.00556431,3181.7,3181.6,4.847]
[1642483835490,3.32132984,3181.7,3181.6,4.847]
[1642483836889,3.32132984,3181.7,3181.6,4.547]
[1642483837739,3.32132984,3181.7,3181.6,4.847]
[1642483843085,3.31359561,3181.7,3181.6,4.847]
[1642483853542,6.20935837,3181.7,3181.6,3.547]
[1642483853741,6.20935837,3181.7,3181.2,0.1257]
[1642483853742,5.35,3181.6,3181.2,0.1257]
[1642483853941,2.99233836,3181.5,3180.7,0.5727]
[1642483854140,2.99233836,3181.5,3181.3,0.00227369]
[1642483854340,5.86018147,3181.4,3181.3,0.00227369]
[1642483854543,1.73049438,3181.4,3181.3,0.00227369]
[1642483854739,2.04625991,3181.4,3181.3,0.00227369]
[1642483855142,2.17195991,3181.4,3181.3,0.00227369]
[1642483856179,2.04625991,3181.4,3181.3,3.10227369]
[1642483856580,2.04625991,3181.4,3181.3,4.10227369]
[1642483856777,2.04625991,3181.4,3181.3,3.10227369]
[1642483856978,3.65741075,3181.4,3181.3,4.10227369]
[1642483857783,2.24722928,3181.4,3181.3,4.10227369]
[1642483857984,0.63607844,3181.4,3181.3,4.10227369]
[1642483858984,2.13312644,3181.4,3181.3,4.10227369]
[1642483859837,0.63607844,3181.4,3181.3,4.40227369]
[1642483860034,2.24722928,3181.4,3181.3,4.40227369]
[1642483860837,2.24722928,3181.4,3181.3,3.10227369]
[1642483861238,0.63607844,3181.4,3181.3,3.10227369]
[1642483861836,0.63607844,3181.4,3181.3,3.40227369]
[1642483862236,0.63607844,3181.4,3181.3,4.40227369]
[1642483862441,0.63607844,3181.4,3181.3,3.40227369]
[1642483862638,0.63607844,3181.4,3181.3,4.40227369]
[1642483862840,0.63607844,3181.4,3181.3,3.10227369]
[1642483863041,0.63607844,3181.4,3181.3,4.10227369]
[1642483863239,0.63607844,3181.4,3181.3,3.10227369]
[1642483863441,0.63607844,3181.4,3181.3,4.10227369]
[1642483863884,2.06281025,3181.4,3181.3,4.10227369]
[1642483864283,2.06281025,3181.4,3181.3,3.10227369]
[1642483864485,4.74827278,3181.4,3181.3,3.10227369]
[1642483865384,3.32154097,3181.4,3181.3,4.10227369]
[1642483866386,3.32154097,3181.4,3181.3,3.10227369]
[1642483866986,4.84387476,3181.4,3181.3,3.10227369]
[1642483867638,4.96957476,3181.4,3181.3,3.10227369]
[1642483869137,3.44724097,3181.4,3181.3,3.10227369]
[1642483869537,3.32154097,3181.4,3181.3,4.10227369]
[1642483869740,3.32154097,3181.4,3181.3,3.10227369]
[1642483870140,4.6510266,3181.4,3181.3,3.10227369]
[1642483870338,6.26178757,3181.4,3181.3,3.10227369]
[1642483871383,6.38748757,3181.4,3181.3,3.10227369]
[1642483871779,4.7767266,3181.4,3181.3,3.10227369]
[1642483872790,10.1156075,3181.4,3181.3,3.10227369]
[1642483872989,7.18835873,3181.4,3181.3,3.10227369]
[1642483873586,4.7767266,3181.4,3181.3,3.10227369]
[1642483873788,7.9922361,3181.4,3181.3,3.10227369]
[1642483874388,10.80530736,3181.4,3181.3,3.10227369]
[1642483875032,7.9922361,3181.4,3181.3,3.10227369]
[1642483875934,26.4222361,3181.4,3181.3,3.10227369]
[1642483876332,7.9922361,3181.4,3181.3,3.10227369]
[1642483877133,7.4922361,3181.4,3181.3,3.10227369]
[1642483877336,11.38434159,3181.4,3181.3,3.10227369]
[1642483877537,8.16883209,3181.4,3181.3,3.10227369]
[1642483877940,8.30491053,3181.4,3181.3,3.10227369]
[1642483878338,4.2767266,3181.4,3181.3,3.10227369]
[1642483879792,7.9767266,3181.4,3181.3,0.31303058]
[1642483879992,26.4067266,3181.4,3181.3,0.31303058]
[1642483880192,26.73491053,3181.4,3181.3,0.31303058]
[1642483880995,26.73491053,3181.4,3180.3,0.1257]
[1642483880996,18.43,3181.2,3180.3,0.1257]
[1642483881295,18.43,3181.0,3180.4,0.00511581]
[1642483881692,8.8824,3181.1,3179.9,0.00795793]
[1642483881897,1.40221373,3180.3,3180.0,0.1257]
[1642483882093,1.61162282,3180.8,3180.0,0.1257]
[1642483882094,0.7728,3180.5,3180.0,0.1257]
[1642483882337,0.7728,3180.5,3180.1,0.00682108]
[1642483882945,2.68546253,3180.2,3179.9,0.00795793]
[1642483883145,2.68546253,3180.2,3180.0,0.1257]
[1642483883644,2.68546253,3180.2,3180.1,0.00682108]
[1642483883844,0.13607844,3180.3,3180.1,0.00682108]
[1642483884646,2.68546253,3180.2,3180.1,0.00682108]
[1642483884843,2.68546253,3180.2,3180.1,0.13252108]
[1642483886280,2.68546253,3180.2,3180.1,0.00682108]
[1642483886480,2.68546253,3180.2,3180.1,3.10682108]
[1642483886681,2.68546253,3180.2,3180.1,4.1]
[1642483886883,2.68546253,3180.2,3180.1,4.23252108]
[1642483888486,2.82154097,3180.2,3180.1,4.23252108]
[1642483889288,2.82154097,3180.2,3180.1,3.23252108]
[1642483890332,0.13607844,3180.2,3180.1,3.23252108]
[1642483890733,0.13607844,3180.2,3180.1,3.10682108]
[1642483891335,3.02683836,3180.2,3180.1,3.10682108]
[1642483891636,3.02683836,3180.2,3180.1,1.78222108]
[1642483891637,7.61885371,3180.2,3180.1,1.78222108]
[1642483892033,4.9,3180.1,3179.0,4.36381259]
[1642483892234,3.45706563,3180.0,3179.0,4.36381259]
[1642483892439,3.45706563,3180.0,3179.1,0.00568424]
[1642483892637,1.40364592,3179.4,3179.1,0.00568424]
[1642483892839,2.51644592,3179.4,3179.1,0.00568424]
[1642483893039,2.64224592,3179.4,3179.1,0.00568424]
[1642483893683,0.13607844,3179.2,3179.1,0.00568424]
[1642483893884,0.26187844,3179.2,3179.1,0.00568424]
[1642483895990,0.13607844,3179.2,3179.1,0.00568424]
[1642483896388,0.13607844,3179.2,3179.1,3.10568424]
[1642483896588,0.13607844,3179.2,3179.1,3.1]
[1642483896790,0.26187844,3179.2,3179.1,3.1]
[1642483896988,5.75,3179.1,3178.7,0.00795793]
[1642483897189,3.59466251,3179.2,3178.7,0.00795793]
[1642483897190,3.43049095,3179.0,3178.7,0.00795793]
[1642483897437,0.1258,3179.0,3178.6,0.00852635]
[1642483897637,0.1258,3179.1,3178.6,0.00852635]
[1642483898838,0.12718845,3179.0,3178.6,0.00852635]
[1642483899039,0.26187844,3178.9,3178.6,0.00852635]
[1642483899241,3.48841459,3178.9,3178.6,0.00852635]
[1642483901219,0.26187844,3178.9,3178.6,0.00852635]
[1642483901813,0.26187844,3178.9,3178.1,0.01136847]
[1642483902013,3.2784273,3178.9,3178.1,0.01136847]
[1642483903216,4.29879391,3178.8,3178.1,0.01136847]
[1642483903617,2.75655829,3178.7,3178.1,0.01136847]
[1642483904218,3.62915829,3178.7,3178.1,0.01136847]
[1642483904417,1.22422538,3178.2,3178.1,0.01136847]
[1642483905233,3.91097157,3178.2,3178.1,0.01136847]
[1642483906031,3.91097157,3178.2,3177.8,0.1258]
[1642483906032,3.91097157,3178.2,3178.0,0.01193689]
[1642483906233,3.91097157,3178.2,3177.9,0.01250532]
[1642483906834,0.1258,3178.1,3177.9,0.01250532]
[1642483907239,2.81254619,3178.1,3177.9,0.01250532]
[1642483908439,2.68674619,3178.0,3177.8,0.01307374]
[1642483908685,3.49454619,3178.0,3177.8,0.01307374]
[1642483909688,2.68674619,3177.9,3177.8,0.01307374]
[1642483909888,2.82282463,3177.9,3177.8,0.01307374]
[1642483910489,2.82282463,3177.9,3177.4,0.447]
[1642483910490,2.82282463,3177.9,3177.5,0.01477901]
[1642483911695,2.81254619,3177.8,3177.5,0.01477901]
[1642483911893,2.81254619,3177.8,3177.2,0.01648428]
[1642483912091,2.81254619,3177.8,3177.1,0.01705271]
[1642483912537,2.81254619,3177.8,3177.0,0.01762113]
[1642483912935,1.3795307,3177.1,3176.8,0.01875798]
[1642483913537,8.09429391,3177.7,3176.8,0.01875798]
[1642483913538,0.1259,3177.6,3176.8,0.01875798]
[1642483914537,2.68674619,3177.5,3176.8,0.01875798]
[1642483914738,1.35018261,3177.2,3176.8,0.01875798]
[1642483915138,0.13607844,3177.0,3176.8,0.01875798]
[1642483915737,0.13607844,3177.0,3176.7,0.0193264]
[1642483915938,0.13607844,3177.0,3176.6,0.01989482]
[1642483916387,2.68674619,3176.9,3176.6,0.01989482]
[1642483916786,2.68674619,3176.9,3176.4,0.02103167]
[1642483916993,0.1259,3176.8,3176.4,0.02103167]
[1642483918090,0.1259,3176.8,3176.2,0.02216852]
[1642483918290,0.1259,3176.8,3176.1,0.02273694]
[1642483918690,0.08473016,3176.7,3176.1,0.02273694]
[1642483918891,1.41231938,3176.2,3176.1,1.02273694]
[1642483919096,1.41231938,3176.2,3176.1,0.02273694]
[1642483920534,1.54839782,3176.2,3176.1,0.02273694]
[1642483921737,1.54839782,3176.2,3175.9,0.02387379]
[1642483923689,1.54839782,3176.2,3175.6,0.1259]
[1642483923690,5.8759,3176.1,3175.6,0.1259]
[1642483923887,18.43,3176.0,3175.6,0.1259]
[1642483924088,0.1259,3175.9,3175.7,0.00113684]
[1642483925896,2.82533045,3175.8,3175.7,0.00113684]
[1642483926096,3.12533045,3175.8,3175.7,0.00113684]
[1642483926296,24.48256454,3175.8,3175.7,0.00113684]
[1642483926495,21.55533045,3175.8,3175.7,0.00113684]
[1642483927097,18.86607844,3175.8,3175.7,0.00113684]
[1642483927352,18.86607844,3175.8,3174.6,0.0073895]
[1642483927545,3.8415,3175.7,3174.6,0.0073895]
[1642483927743,21.7887018,3175.6,3174.6,0.0073895]
[1642483928144,22.0887018,3175.6,3174.6,0.0073895]
[1642483928344,2.7,3175.5,3174.5,3.9440895]
[1642483928545,3.73489057,3175.4,3174.5,3.9440895]
[1642483928745,1.50644628,3175.1,3174.3,0.1259]
[1642483928945,1.80644628,3175.1,3174.3,0.1259]
[1642483929145,0.00227369,3175.0,3174.4,0.00113685]
[1642483929546,0.00170527,3174.9,3174.4,0.00113685]
[1642483929950,0.00113684,3174.8,3174.4,0.00113685]
[1642483930346,0.00227369,3175.0,3174.4,0.00113685]
[1642483930851,0.00170527,3174.9,3174.4,0.00113685]
[1642483931089,0.13607844,3174.8,3174.4,0.00113685]
[1642483931288,0.13721528,3174.8,3174.4,0.00113685]
[1642483933094,0.13721528,3174.8,3174.3,0.00170527]
[1642483933692,0.22258006,3174.8,3174.3,0.00170527]
[1642483936134,0.08650162,3174.8,3174.3,0.00170527]
[1642483936536,0.13607844,3174.6,3174.3,0.00170527]
[1642483936736,0.13607844,3174.6,3174.3,0.12770527]
[1642483938890,0.22127185,3174.6,3174.3,0.00170527]
[1642483941392,0.08519341,3174.6,3174.3,0.00170527]
[1642483941590,0.81319341,3174.6,3174.3,0.00170527]
[1642483941790,0.13607844,3174.4,3174.3,0.00170527]
[1642483943041,1.14446595,3174.2,3174.1,0.00284212]
[1642483943241,1.14446595,3174.2,3174.0,0.0074488]
[1642483943440,1.14446595,3174.2,3173.8,0.05460668]
[1642483943642,1.14446595,3174.2,3173.9,0.126]
[1642483943842,1.14446595,3174.2,3173.9,0.00113685]
[1642483945047,2.69047605,3174.1,3173.9,0.00113685]
[1642483945244,2.69047605,3174.1,3173.7,0.50160668]
[1642483945451,2.69047605,3174.1,3173.8,0.126]
[1642483947090,0.13607844,3174.0,3173.8,0.126]
[1642483948701,0.22122418,3174.0,3173.8,0.126]
[1642483948898,0.22122418,3174.0,3173.7,1.50160668]
[1642483949499,0.21702815,3174.0,3173.7,1.50160668]
[1642483949936,0.21702815,3174.0,3173.7,0.50160668]
[1642483952041,0.21702815,3174.0,3173.8,0.126]
[1642483952042,0.08094971,3174.0,3173.8,0.126]
[1642483952240,0.08094971,3174.0,3173.9,0.447]
[1642483953893,3e-05,3174.0,3173.9,0.573]
[1642483954093,3e-05,3174.0,3173.9,0.92749022]
[1642483955594,3e-05,3174.0,3173.9,0.62749022]
[1642483957342,0.13610844,3174.0,3173.9,0.62749022]
[1642483958645,0.13610844,3174.0,3173.9,3.02749022]
[1642483958843,0.13607844,3174.0,3173.9,3.02749022]
[1642483959143,0.00113684,3174.8,3174.0,5.736]
[1642483959444,8.81218385,3175.6,3174.1,0.573]
[1642483959445,0.00454739,3174.7,3174.1,0.573]
[1642483959642,0.00454739,3174.7,3174.1,2.76959022]
[1642483959942,0.126,3175.4,3174.2,0.05449022]
[1642483959943,0.00397897,3174.6,3174.2,0.05449022]
[1642483960143,0.00397897,3174.6,3174.3,0.447]
[1642483960345,0.00341054,3174.5,3174.3,0.447]
[1642483960544,1.21675618,3174.5,3174.3,0.447]
[1642483960746,0.00284212,3174.4,3174.3,0.447]
[1642483960947,0.00284212,3174.4,3174.3,0.573]
[1642483961986,0.00284212,3174.4,3174.3,0.447]
[1642483982243,0.00284212,3174.4,3174.3,0.40665667]
[1642483987550,0.00284212,3174.4,3174.3,1.40665667]
[1642483987751,0.00284212,3174.4,3174.3,0.40665667]
[1642483988154,0.00284212,3174.4,3174.3,1.40665667]
[1642483989152,0.00284212,3174.4,3174.3,0.40665667]
[1642483990352,1.45001886,3174.4,3174.3,0.40665667]
[1642483990755,1.44717674,3174.4,3174.3,0.40665667]
[1642483995747,1.57317674,3174.4,3174.3,0.40665667]
[1642483995946,4.26410534,3174.4,3174.3,0.40665667]
[1642483996345,4.26410534,3174.4,3174.0,0.01361084]
[1642483996549,4.13810534,3174.4,3174.0,0.01361084]
[1642483996747,0.0022737,3174.3,3174.0,0.01361084]
[1642483997146,0.00170527,3174.2,3174.0,0.01361084]
[1642483997553,0.00113685,3174.1,3174.0,0.01361084]
[1642484011447,0.00113685,3174.1,3174.0,0.13961084]
[1642484011649,0.00113685,3174.1,3174.0,0.58661084]
[1642484014998,0.00113685,3174.1,3174.0,0.46061084]
[1642484016202,2.67563202,3174.3,3174.0,0.46061084]
[1642484016401,1.44717674,3174.4,3174.0,0.46061084]
[1642484016801,0.00113685,3174.3,3174.0,0.46061084]
[1642484031100,0.00113685,3174.3,3174.1,2.87155742]
[1642484031302,0.00113685,3174.3,3174.2,0.447]
[1642484031500,0.00113685,3174.3,3174.2,3.597]
[1642484031702,0.00113685,3174.3,3174.2,0.447]
[1642484032003,0.00113685,3174.3,3174.2,1.447]
[1642484032452,0.00113685,3174.3,3174.2,0.447]
[1642484033353,0.00113685,3174.3,3174.2,3.44596973]
[1642484033554,0.00113685,3174.3,3174.2,1.447]
[1642484034153,0.00113685,3174.3,3174.2,0.447]
[1642484046807,1.54341916,3174.5,3174.2,0.447]
[1642484047208,0.00170527,3174.4,3174.2,0.447]
[1642484047656,0.00113685,3174.3,3174.2,0.447]
[1642484068307,1.75761789,3174.4,3174.2,0.447]
[1642484073706,1.75761789,3174.4,3174.3,1.42403333]
[1642484073707,0.21720551,3174.4,3174.3,1.42403333]
[1642484073903,3.8428,3174.9,3174.3,1.87103333]
[1642484073904,3.7168,3174.9,3174.3,1.87103333]
[1642484074103,3.7168,3174.9,3174.4,2.91962444]
[1642484074303,3.9703,3175.5,3174.5,6.1539]
[1642484074304,0.00284211,3174.8,3174.5,6.1539]
[1642484074504,0.00284211,3174.8,3174.6,3.35210627]
[1642484074705,1.52200189,3175.5,3174.7,7.4309741]
[1642484074905,1.52200189,3175.5,3174.8,2.88357351]
[1642484075203,0.00568423,3175.3,3174.9,1.5729]
[1642484075603,0.00511581,3175.2,3174.9,1.5729]
[1642484076004,0.00454739,3175.1,3174.9,1.5729]
[1642484076507,0.00397896,3175.0,3174.9,1.5729]
[1642484076805,0.00397896,3175.0,3174.9,9.17335042]
[1642484077207,0.00397896,3175.0,3174.9,10.17335042]
[1642484078052,0.00397896,3175.0,3174.9,7.1539]
[1642484078453,0.00397896,3175.0,3174.9,7.028]
[1642484080153,0.00397896,3175.0,3174.9,7.228]
[1642484082100,0.00397896,3175.0,3174.9,7.0535]
[1642484084948,0.00397896,3175.0,3174.9,107.0535]
[1642484085148,0.00397896,3175.0,3174.9,73.5535]
[1642484085352,2.69470127,3175.0,3174.9,78.2535]
[1642484085550,2.69470127,3175.0,3174.9,7.0535]
[1642484085750,2.69470127,3175.0,3174.9,96.2535]
[1642484085949,2.69470127,3175.0,3174.9,81.2535]
[1642484086550,2.69470127,3175.0,3174.9,79.7535]
[1642484086753,2.69470127,3175.0,3174.9,76.7535]
[1642484086951,0.00397896,3175.0,3174.9,77.49470461]
[1642484087153,0.00397896,3175.0,3174.9,82.49470461]
[1642484087351,0.00397896,3175.0,3174.9,7.79470461]
[1642484087554,0.00397896,3175.0,3174.9,110.97372928]
[1642484087754,0.00397896,3175.0,3174.9,93.92239793]
[1642484087954,0.00397896,3175.0,3174.9,108.12239793]
[1642484089407,0.00397896,3175.0,3174.9,53.82239793]